bitfinex/quotes_SOLUSD_20250326
["timestamp","ask_amount","ask_price","bid_price","bid_amount"]
[1742986378396,8.31730434,145.07,145.04,12.8945]
[1742986378789,8.31730434,145.08,145.04,12.8945]
[1742986378982,8.38030434,145.09,145.04,12.8945]
[1742986379309,8.38030434,145.09,145.04,21.21180434]
[1742986379606,8.31730434,145.07,145.04,12.8945]
[1742986380705,8.31730434,145.05,145.04,6.0]
[1742986380999,8.31730434,145.06,145.04,6.0]
[1742986382721,8.31730434,145.06,145.03,6.958]
[1742986383003,8.31730434,145.06,145.03,6.083]
[1742986384979,8.31730434,145.06,145.03,12.9779]
[1742986385183,8.31730434,145.07,145.03,12.9779]
[1742986386306,8.31730434,145.06,145.03,6.083]
[1742986388185,8.31730434,145.05,145.03,6.083]
[1742986388407,8.31730434,145.06,145.03,6.083]
[1742986388603,8.31730434,145.05,145.03,6.083]
[1742986388804,8.31730434,145.04,145.03,0.063]
[1742986392304,15.21190434,145.04,145.03,0.063]
[1742986393193,33.8615532,145.04,145.03,0.063]
[1742986393899,15.21190434,145.04,145.03,0.063]
[1742986395011,8.31730434,145.04,145.03,0.063]
[1742986396010,15.21190434,145.04,145.03,0.063]
[1742986398218,15.35406591,145.04,145.03,0.063]
[1742986399412,0.14216157,145.03,145.01,0.063]
[1742986399612,8.31730434,145.02,145.01,0.063]
[1742986399809,27.10911477,145.02,145.01,0.063]
[1742986400416,18.79181043,145.01,145.0,0.063]
[1742986400598,28.73101477,145.01,145.0,0.063]
[1742986401519,25.68881043,144.99,144.98,0.063]
[1742986401701,67.27533213,144.99,144.98,0.063]
[1742986402303,34.00611477,144.99,144.98,0.063]
[1742986402706,27.10911477,144.99,144.98,0.063]
[1742986402914,8.31730434,144.99,144.98,0.063]
[1742986410203,18.79181043,145.01,144.98,0.063]
[1742986410407,8.31730434,144.99,144.98,0.063]
[1742986413229,15.21430434,144.99,144.98,0.063]
[1742986413821,34.00611477,144.99,144.98,0.063]
[1742986414334,67.27533213,144.99,144.98,0.063]
[1742986415229,18.79181043,144.98,144.94,0.063]
[1742986415432,8.31730434,144.95,144.94,0.063]
[1742986431429,0.063,144.99,144.94,0.063]
[1742986431745,8.31730434,144.97,144.94,0.063]
[1742986432146,8.31730434,144.96,144.94,0.063]
[1742986432653,8.31730434,144.97,144.94,0.063]
[1742986433530,0.063,144.99,144.94,1.6368]
[1742986433726,8.31730434,144.98,144.94,1.6368]
[1742986433932,0.063,144.99,144.94,1.6368]
[1742986434352,8.31730434,144.98,144.94,1.6368]
[1742986434729,8.31730434,144.98,144.95,6.8989]
[1742986435941,0.063,144.99,144.95,15.21620434]
[1742986436144,0.063,144.99,144.96,8.31730434]
[1742986436347,0.063,144.99,144.97,6.0]
[1742986436555,0.063,144.99,144.97,14.31730434]
[1742986436751,0.063,144.99,144.98,6.8975]
[1742986437434,0.063,144.99,144.98,15.21480434]
[1742986438658,0.063,144.99,144.98,6.8975]
[1742986441658,0.063,144.99,144.98,88.8674]
[1742986446142,0.063,144.99,144.98,6.8975]
[1742986450272,0.063,144.99,144.98,15.21480434]
[1742986453063,0.063,144.99,144.98,34.00661477]
[1742986453465,0.063,144.99,144.98,15.21480434]
[1742986453665,0.063,144.99,144.98,6.8975]
[1742986456172,0.063,144.99,144.98,15.21480434]
[1742986457797,0.063,144.99,144.98,97.18470434]
[1742986462488,8.31730434,145.06,144.98,133.22021477]
[1742986462780,8.31730434,145.06,145.01,8.31730434]
[1742986462978,8.31730434,145.06,145.02,5.98]
[1742986463559,8.31730434,145.06,145.03,6.8951]
[1742986464456,8.31730434,145.07,145.03,6.8951]
[1742986466068,8.31730434,145.06,145.02,5.98]
[1742986466264,8.31730434,145.06,145.02,12.8755]
[1742986467183,8.31730434,145.07,145.02,12.8755]
[1742986468363,8.31730434,145.07,145.02,21.19280434]
[1742986468688,8.31730434,145.07,145.02,12.8755]
[1742986468862,15.21050434,145.07,145.02,12.8755]
[1742986470088,8.31730434,145.06,145.02,12.8755]
[1742986471285,8.31730434,145.05,145.02,5.98]
[1742986471488,8.31730434,145.04,145.02,5.98]
[1742986472167,24.1858,145.09,145.02,5.98]
[1742986472168,8.31730434,145.03,145.02,5.96]
[1742986474167,8.38030434,145.03,145.02,5.96]
[1742986474567,8.38030434,145.03,145.0,6.8965]
[1742986474781,8.38030434,145.03,145.01,5.96]
[1742986475186,0.063,145.03,145.01,5.96]
[1742986477188,8.38030434,145.03,145.01,5.96]
[1742986477375,0.063,145.03,145.01,5.96]
[1742986477571,8.38030434,145.03,145.01,5.96]
[1742986477886,8.31730434,145.02,145.01,5.96]
[1742986478065,8.31730434,145.02,144.97,81.9999]
[1742986478270,8.31730434,145.01,145.0,5.96]
[1742986478892,0.063,145.03,145.0,5.96]
[1742986478893,8.31730434,145.02,145.0,5.96]
[1742986480591,8.31730434,145.01,145.0,5.96]
[1742986482285,6.9583,145.03,145.0,5.96]
[1742986482598,8.31730434,145.02,145.0,5.96]
[1742986482781,8.31730434,145.01,145.0,5.96]
[1742986484896,8.31730434,145.02,145.0,5.96]
[1742986487386,0.063,145.03,145.0,5.96]
[1742986487699,0.063,145.03,145.0,12.8565]
[1742986489694,8.38030434,145.03,145.0,5.96]
[1742986495677,8.38030434,145.03,144.99,6.8969]
[1742986495888,8.38030434,145.03,145.0,5.94]
[1742986498203,0.063,145.03,145.0,5.94]
[1742986501506,8.38030434,145.03,145.0,5.94]
[1742986502210,8.31730434,145.02,145.0,5.94]
[1742986504000,8.38030434,145.03,145.0,5.94]
[1742986504199,0.063,145.03,145.0,12.8364]
[1742986504396,0.063,145.03,145.0,21.15370434]
[1742986506187,0.063,145.03,145.0,5.94]
[1742986507986,0.063,145.03,145.0,12.8364]
[1742986510890,0.063,145.03,145.0,21.15370434]
[1742986515014,0.063,145.03,145.0,12.8364]
[1742986515707,0.063,145.03,145.0,21.15370434]
[1742986517511,0.063,145.03,145.02,8.31730434]
[1742986519191,0.063,145.03,145.02,27.10911477]
[1742986519411,0.063,145.03,145.02,34.00471477]
[1742986520319,0.063,145.09,145.03,18.79181043]
[1742986520496,0.063,145.09,145.08,8.31730434]
[1742986520694,0.063,145.09,145.08,14.23730434]
[1742986522000,0.063,145.09,145.08,21.13000434]
[1742986525300,0.063,145.09,145.08,103.09990434]
[1742986525528,0.063,145.09,145.08,96.20720434]
[1742986527206,0.063,145.09,145.08,87.8899]
[1742986528324,0.063,145.09,145.08,5.92]
[1742986533201,0.063,145.09,145.08,12.8127]
[1742986534810,0.063,145.09,145.08,21.13000434]
[1742986535719,0.063,145.09,145.08,12.8127]
[1742986536531,0.063,145.09,145.08,21.13000434]
[1742986540131,0.063,145.09,145.08,103.09990434]
[1742986544632,0.063,145.09,145.08,81.9699]
[1742986546029,0.063,145.09,145.07,12.7932]
[1742986549537,0.063,145.09,145.07,21.11050434]
[1742986553332,0.063,145.09,145.07,12.7932]
[1742986553537,0.063,145.09,145.07,21.11050434]
[1742986554321,0.063,145.09,145.07,12.7932]
[1742986558147,0.063,145.09,145.07,21.11050434]
[1742986559350,0.063,145.09,145.08,8.31730434]
[1742986559931,0.063,145.09,145.07,21.11050434]
[1742986560837,0.063,145.09,145.07,12.7932]
[1742986561731,0.063,145.09,145.05,81.9699]
[1742986561922,0.063,145.09,145.05,87.8699]
[1742986562420,0.063,145.09,145.05,94.7638]
[1742986562826,8.38030434,145.09,145.05,94.7638]
[1742986563746,8.31730434,145.08,145.05,88.8638]
[1742986564049,8.31730434,145.08,145.05,81.9699]
[1742986564228,8.31730434,145.08,145.04,6.8944]
[1742986565842,8.31730434,145.07,145.04,6.8944]
[1742986567859,8.31730434,145.07,145.03,6.9251]
[1742986568152,8.31730434,145.07,145.03,0.03]
[1742986568358,8.31730434,145.06,145.03,0.03]
[1742986568851,8.31730434,145.07,145.03,0.03]
[1742986569640,8.31730434,145.08,145.03,8.34730434]
[1742986570068,8.31730434,145.08,145.04,6.8946]
[1742986570738,8.31730434,145.06,145.03,6.925]
[1742986571143,8.31730434,145.07,145.03,6.925]
[1742986572557,8.31730434,145.08,145.03,15.24230434]
[1742986572757,0.063,145.09,145.05,8.31730434]
[1742986572956,0.063,145.09,145.07,8.31730434]
[1742986573162,0.063,145.09,145.08,14.21730434]
[1742986573652,0.063,145.09,145.08,5.9]
[1742986574963,0.063,145.09,145.08,12.7927]
[1742986588475,0.063,145.09,145.08,5.9]
[1742986588685,0.063,145.09,145.08,12.7927]
[1742986589286,8.38030434,145.09,145.08,5.9]
[1742986590074,8.38030434,145.09,145.06,6.8935]
[1742986601292,0.063,145.09,145.06,6.8935]
[1742986603171,0.063,145.09,145.08,8.31730434]
[1742986605288,0.063,145.13,145.08,97.17990434]
[1742986605590,0.063,145.13,145.1,8.31730434]
[1742986605788,0.063,145.13,145.11,5.9]
[1742986606493,0.063,145.13,145.12,6.8908]
[1742986612584,0.063,145.13,145.12,15.20810434]
[1742986617082,0.063,145.13,145.11,21.10850434]
[1742986620798,0.063,145.13,145.11,12.7912]
[1742986626288,0.063,145.13,145.11,5.9]
[1742986626684,8.38030434,145.13,145.08,88.8625]
[1742986626887,8.31730434,145.12,145.08,88.8625]
[1742986627207,8.31730434,145.1,145.06,198.72]
[1742986627393,8.31730434,145.09,145.06,198.72]
[1742986627707,8.31730434,145.08,145.05,5.9]
[1742986628090,8.31730434,145.07,145.03,12.825]
[1742986628292,8.31730434,145.09,145.04,8.31730434]
[1742986628594,8.1082,145.12,145.07,8.31730434]
[1742986628595,8.31730434,145.12,145.07,8.31730434]
[1742986628797,0.063,145.13,145.09,8.31730434]
[1742986629004,0.063,145.13,145.1,8.31730434]
[1742986629595,0.063,145.13,145.09,8.31730434]
[1742986629985,0.063,145.13,145.1,6.8917]
[1742986630692,0.063,145.13,145.1,15.20900434]
[1742986630899,0.063,145.13,145.1,6.8917]
[1742986635503,0.063,145.13,145.1,15.20900434]
[1742986635703,0.063,145.13,145.12,8.31730434]
[1742986636505,0.063,145.14,145.13,8.31730434]
[1742986636807,0.063,145.16,145.13,14.21730434]
[1742986637010,0.063,145.16,145.14,8.31730434]
[1742986637208,0.063,145.16,145.15,8.31730434]
[1742986637588,0.063,145.16,145.15,15.20670434]
[1742986638712,0.063,145.16,145.15,6.8894]
[1742986645242,0.063,145.16,145.15,15.20670434]
[1742986647330,0.063,145.16,145.15,6.8894]
[1742986649938,0.063,145.16,145.15,15.20670434]
[1742986651933,0.063,145.16,145.15,97.17660434]
[1742986654442,0.063,145.16,145.15,115.96841477]
[1742986654928,0.063,145.18,145.17,8.31730434]
[1742986655138,0.063,145.18,145.17,90.28720434]
[1742986656741,0.063,145.18,145.17,97.17560434]
[1742986658635,0.063,145.18,145.17,115.96741477]
[1742986661423,0.063,145.18,145.17,97.17560434]
[1742986661631,0.063,145.18,145.17,88.8583]
[1742986661928,0.063,145.18,145.17,97.17560434]
[1742986674864,0.063,145.18,145.17,81.9699]
[1742986675071,0.063,145.18,145.17,87.8699]
[1742986676954,0.063,145.18,145.17,94.7583]
[1742986679569,0.063,145.18,145.17,103.07560434]
[1742986681882,0.063,145.18,145.17,121.86741477]
[1742986683480,0.063,145.18,145.17,103.07560434]
[1742986683776,0.063,145.18,145.17,94.7583]
[1742986685880,0.063,145.18,145.17,87.8699]
[1742986686683,0.063,145.18,145.17,87.8499]
[1742986686888,8.38030434,145.18,145.16,0.03]
[1742986687183,8.31730434,145.17,145.16,0.03]
[1742986690296,23.66517025,145.17,145.16,0.03]
[1742986690489,67.26673213,145.17,145.16,0.03]
[1742986691186,68.90693213,145.17,145.16,0.03]
[1742986692862,20.0,145.14,145.09,0.03]
[1742986693069,8.31730434,145.1,145.09,0.03]
[1742986695259,8.31730434,145.11,145.09,0.03]
[1742986695459,8.31730434,145.13,145.09,0.03]
[1742986696163,8.31730434,145.12,145.09,0.03]
[1742986697600,8.31730434,145.13,145.09,0.03]
[1742986697962,8.31730434,145.12,145.09,0.03]
[1742986705507,8.31730434,145.11,145.09,0.03]
[1742986705794,8.31730434,145.1,145.09,0.03]
[1742986707981,77.4794882,145.15,145.09,0.03]
[1742986708304,8.31730434,145.11,145.09,0.03]
[1742986708472,8.31730434,145.1,145.09,0.03]
[1742986710578,8.31730434,145.11,145.09,0.03]
[1742986716887,8.31730434,145.1,145.09,0.03]
[1742986720108,8.31730434,145.11,145.09,0.03]
[1742986722929,8.31730434,145.1,145.09,0.03]
[1742986724595,8.31730434,145.11,145.09,0.03]
[1742986727326,8.31730434,145.12,145.09,0.03]
[1742986728389,8.31730434,145.14,145.09,8.34730434]
[1742986728594,8.31730434,145.15,145.09,8.34730434]
[1742986729635,8.31730434,145.15,145.1,6.8917]
[1742986731617,15.20700434,145.15,145.1,6.8917]
[1742986731823,8.31730434,145.14,145.09,15.23930434]
[1742986732018,8.31730434,145.14,145.09,6.922]
[1742986733107,8.31730434,145.14,145.09,0.03]
[1742986736212,8.31730434,145.13,145.09,0.03]
[1742986738519,6.8894,145.15,145.09,0.03]
[1742986738520,8.31730434,145.14,145.09,0.03]
[1742986739724,8.31730434,145.15,145.09,8.34730434]
[1742986740319,8.31730434,145.14,145.09,0.03]
[1742986742606,8.31730434,145.13,145.09,0.03]
[1742986742807,8.31730434,145.14,145.09,0.03]
[1742986743507,0.063,145.16,145.09,0.03]
[1742986743708,8.31730434,145.14,145.09,0.03]
[1742986746927,6.952,145.16,145.11,8.31730434]
[1742986746928,0.063,145.16,145.11,8.31730434]
[1742986747231,8.38030434,145.16,145.12,5.9]
[1742986748815,8.38030434,145.16,145.12,12.7907]
[1742986749034,8.31730434,145.15,145.12,12.7907]
[1742986749228,8.31730434,145.14,145.12,5.9]
[1742986749738,8.31730434,145.13,145.12,5.9]
[1742986750311,8.31730434,145.13,145.09,0.03]
[1742986750512,8.31730434,145.12,145.09,0.03]
[1742986750714,8.31730434,145.11,145.09,0.03]
[1742986751027,8.31730434,145.1,145.09,0.03]
[1742986754433,8.31730434,145.11,145.09,0.03]
[1742986755226,6.8904,145.13,145.09,0.03]
[1742986755612,8.31730434,145.11,145.09,0.03]
[1742986755817,8.31730434,145.13,145.09,0.03]
[1742986757039,8.31730434,145.13,145.09,6.9222]
[1742986757737,0.5,145.1,145.08,14.21730434]
[1742986758153,0.5,145.11,145.08,14.21730434]
[1742986759645,0.5,145.11,145.09,6.8922]
[1742986759830,0.5,145.1,145.09,6.8922]
[1742986760331,0.5,145.1,145.08,12.7926]
[1742986762649,0.5,145.11,145.08,12.7926]
[1742986762854,0.5,145.1,145.08,5.9]
[1742986763078,0.5,145.08,145.05,12.794]
[1742986763359,8.81730434,145.08,145.05,6.894]
[1742986763754,0.5,145.07,145.04,12.7944]
[1742986764248,0.5,145.05,145.03,12.795]
[1742986764431,0.5,145.05,145.03,6.895]
[1742986764824,0.5,145.06,145.03,6.895]
[1742986765024,0.5,145.06,145.03,15.21230434]
[1742986765430,0.5,145.07,145.03,15.21230434]
[1742986765631,0.5,145.06,145.03,15.21230434]
[1742986766143,0.5,145.07,145.03,32.45010434]
[1742986766323,0.5,145.08,145.05,8.31730434]
[1742986766729,0.5,145.07,145.05,8.31730434]
[1742986767032,0.5,145.07,145.03,24.1328]
[1742986767033,0.5,145.07,145.04,8.31730434]
[1742986769530,0.5,145.07,145.06,6.8936]
[1742986770056,0.5,145.08,145.06,6.8936]
[1742986771563,0.5,145.1,145.07,8.31730434]
[1742986771728,0.5,145.1,145.08,8.31730434]
[1742986772338,0.5,145.11,145.08,8.31730434]
[1742986772662,0.5,145.1,145.08,8.31730434]
[1742986772833,0.5,145.1,145.07,14.21730434]
[1742986773976,0.5,145.1,145.08,6.8927]
[1742986774456,0.5,145.11,145.08,15.21000434]
[1742986774658,0.563,145.12,145.08,15.21000434]
[1742986774858,0.563,145.12,145.09,8.31730434]
[1742986776678,0.563,145.12,145.1,6.8917]
[1742986778277,0.5,145.11,145.1,6.8917]
[1742986778466,0.563,145.12,145.1,6.8917]
[1742986778885,0.5,145.11,145.1,6.8917]
[1742986779554,0.063,145.12,145.1,6.8917]
[1742986779758,0.563,145.12,145.1,6.8917]
[1742986780780,8.88030434,145.12,145.08,6.8927]
[1742986780962,0.5,145.09,145.08,6.8927]
[1742986783382,0.5,145.1,145.08,6.8927]
[1742986783582,0.5,145.09,145.08,6.8927]
[1742986784075,0.5,145.1,145.08,6.8927]
[1742986784390,0.5,145.09,145.08,6.8927]
[1742986785182,0.5,145.1,145.08,15.21000434]
[1742986787572,0.5,145.11,145.09,8.31730434]
[1742986788886,0.5,145.11,145.1,6.8917]
[1742986791692,0.5,145.11,145.09,6.8922]
[1742986791865,0.5,145.1,145.09,6.8922]
[1742986792791,0.5,145.11,145.09,6.8922]
[1742986794880,0.5,145.1,145.08,6.8927]
[1742986795290,0.5,145.09,145.07,12.7731]
[1742986796179,0.5,145.09,145.07,21.09040434]
[1742986796377,0.5,145.1,145.07,21.09040434]
[1742986797067,0.5,145.09,145.07,12.7731]
[1742986799096,0.5,145.07,145.03,6.8951]
[1742986799286,0.5,145.07,145.04,8.31730434]
[1742986799596,0.5,145.07,145.03,21.09240434]
[1742986800098,0.5,145.06,145.03,21.09240434]
[1742986800272,0.5,145.06,145.03,14.19730434]
[1742986801493,0.5,145.07,145.04,15.21180434]
[1742986801700,0.5,145.08,145.05,8.31730434]
[1742986801998,0.5,145.08,145.06,8.31730434]
[1742986802379,0.5,145.1,145.07,8.31730434]
[1742986802696,0.5,145.1,145.08,8.31730434]
[1742986802894,0.5,145.09,145.08,8.31730434]
[1742986803071,0.5,145.09,145.07,8.31730434]
[1742986803497,0.5,145.09,145.06,8.31730434]
[1742986803793,19.14964886,145.09,145.05,8.31730434]
[1742986803986,0.5,145.07,145.05,8.31730434]
[1742986804992,0.5,145.08,145.05,8.31730434]
[1742986805205,0.5,145.07,145.05,8.31730434]
[1742986805587,0.5,145.07,145.05,15.21130434]
[1742986805996,0.5,145.07,145.06,8.31730434]
[1742986806194,0.5,145.08,145.06,8.31730434]
[1742986806396,0.5,145.08,145.07,8.31730434]
[1742986807409,0.5,145.07,145.06,15.21080434]
[1742986808201,0.5,145.07,145.06,6.8935]
[1742986808501,0.5,145.06,145.04,15.21180434]
[1742986808882,0.5,145.06,145.04,6.8945]
[1742986809203,0.5,145.06,145.04,15.21180434]
[1742986810004,0.5,145.07,145.05,15.21140434]
[1742986810184,0.5,145.06,145.05,15.21140434]
[1742986810602,0.5,145.06,145.05,6.8941]
[1742986810809,0.5,145.06,145.05,15.21140434]
[1742986811180,0.5,145.07,145.05,15.21140434]
[1742986811386,0.5,145.07,145.03,5.88]
[1742986811387,0.5,145.06,145.04,21.09170434]
[1742986812588,0.5,145.06,145.04,15.21170434]
[1742986812788,0.5,145.07,145.04,15.21170434]
[1742986812983,0.5,145.06,145.04,15.21170434]
[1742986813396,0.5,145.04,145.03,12.775]
[1742986813595,0.5,145.04,145.03,5.88]
[1742986814210,0.5,145.04,145.03,12.7751]
[1742986814419,0.5,145.04,145.03,21.09240434]
[1742986814903,0.5,145.04,145.03,15.21240434]
[1742986815611,0.5,145.04,145.03,6.8951]
[1742986816309,0.5,145.04,145.03,15.21240434]
[1742986816509,0.5,145.05,145.03,15.21240434]
[1742986816715,0.5,145.04,145.03,15.21240434]
[1742986817012,0.5,145.04,145.03,21.09240434]
[1742986818310,0.5,145.05,145.03,21.09240434]
[1742986818492,0.5,145.05,145.03,15.21240434]
[1742986819316,0.5,145.06,145.03,15.21240434]
[1742986819514,0.5,145.05,145.03,15.21240434]
[1742986819898,0.5,145.06,145.04,8.31730434]
[1742986820099,0.5,145.07,145.05,8.31730434]
[1742986820609,0.5,145.08,145.06,15.21090434]
[1742986820818,0.5,145.08,145.07,14.19730434]
[1742986822523,0.5,145.08,145.07,21.09050434]
[1742986824315,0.563,145.09,145.07,21.09050434]
[1742986824518,0.5,145.08,145.07,12.7732]
[1742986825298,0.5,145.08,145.07,21.09050434]
[1742986825494,0.563,145.09,145.07,21.09050434]
[1742986825700,0.063,145.09,145.08,8.31730434]
[1742986827336,0.563,145.09,145.08,15.21000434]
[1742986828822,0.063,145.09,145.08,15.21000434]
[1742986829000,0.563,145.09,145.08,15.21000434]
[1742986829528,0.063,145.09,145.08,15.21000434]
[1742986831824,0.563,145.09,145.08,15.21000434]
[1742986832738,0.563,145.09,145.08,6.8927]
[1742986835031,0.063,145.09,145.08,6.8927]
[1742986835429,0.563,145.09,145.08,6.8927]
[1742986837507,0.063,145.09,145.08,6.8927]
[1742986838017,0.563,145.09,145.08,6.8927]
[1742986840811,0.063,145.09,145.08,6.8927]
[1742986841035,0.563,145.09,145.08,6.8927]
[1742986842122,0.063,145.09,145.08,6.8927]
[1742986842321,0.563,145.09,145.08,6.8927]
[1742986842522,0.063,145.09,145.08,6.8927]
[1742986843433,0.563,145.09,145.08,6.8927]
[1742986849760,0.063,145.09,145.08,6.8927]
[1742986849950,0.563,145.09,145.08,6.8927]
[1742986853559,0.5,145.08,145.06,6.8936]
[1742986853737,0.5,145.08,145.06,12.7736]
[1742986854748,0.063,145.09,145.07,8.31730434]
[1742986854949,0.063,145.09,145.08,8.31730434]
[1742986856254,0.063,145.09,145.08,15.21000434]
[1742986857146,0.063,145.12,145.11,8.31730434]
[1742986857359,0.063,145.12,145.11,14.19730434]
[1742986858250,0.563,145.12,145.11,14.19730434]
[1742986858448,0.563,145.12,145.11,21.08860434]
[1742986859256,0.063,145.12,145.11,21.08860434]
[1742986859441,0.563,145.12,145.11,21.08860434]
[1742986859970,0.063,145.12,145.11,21.08860434]
[1742986860966,0.063,145.12,145.11,14.19730434]
[1742986861468,0.563,145.12,145.11,14.19730434]
[1742986861867,0.563,145.12,145.11,5.88]
[1742986862685,0.563,145.12,145.08,90.31730434]
[1742986862975,0.5,145.09,145.06,14.19730434]
[1742986863865,0.5,145.09,145.07,8.31730434]
[1742986864368,0.5,145.09,145.06,5.88]
[1742986864565,0.5,145.09,145.07,8.31730434]
[1742986866581,0.5,145.09,145.06,14.19730434]
[1742986867184,0.5,145.07,145.06,5.88]
[1742986867677,0.5,145.07,145.06,14.19730434]
[1742986867871,0.5,145.08,145.06,14.19730434]
[1742986868255,0.5,145.09,145.07,8.31730434]
[1742986868459,0.5,145.1,145.07,8.31730434]
[1742986868878,0.5,145.1,145.08,8.31730434]
[1742986869051,0.5,145.11,145.09,8.31730434]
[1742986871881,0.563,145.12,145.1,8.31730434]
[1742986872083,0.563,145.12,145.09,28.31730434]
[1742986872265,0.5,145.11,145.08,8.31730434]
[1742986872584,19.14964886,145.11,145.07,8.31730434]
[1742986872779,0.5,145.09,145.06,14.22730434]
[1742986873081,0.5,145.09,145.06,8.34730434]
[1742986873284,0.5,145.09,145.06,14.22730434]
[1742986873483,0.5,145.09,145.07,8.31730434]
[1742986875295,0.5,145.1,145.07,8.31730434]
[1742986875607,0.5,145.09,145.07,8.31730434]
[1742986876900,0.5,145.1,145.07,8.31730434]
[1742986877073,0.5,145.09,145.07,8.31730434]
[1742986877274,0.5,145.1,145.07,8.31730434]
[1742986877567,0.5,145.09,145.07,8.31730434]
[1742986878897,0.5,145.09,145.06,5.91]
[1742986879399,19.14964886,145.07,145.06,0.03]
[1742986879615,27.4669532,145.07,145.06,0.03]
[1742986882176,19.14964886,145.07,145.06,0.03]
[1742986883403,27.4669532,145.07,145.06,0.03]
[1742986883990,27.60911477,145.07,145.06,0.03]
[1742986884192,33.97541477,145.07,145.06,0.03]
[1742986885491,35.50401477,145.07,145.06,0.03]
[1742986895183,19.14964886,145.07,145.06,0.03]
[1742986896008,0.5,145.07,145.06,0.03]
[1742986901099,27.60911477,145.07,145.06,0.03]
[1742986903392,29.22591477,145.07,145.06,0.03]
[1742986904815,27.60911477,145.07,145.06,0.03]
[1742986909622,19.14964886,145.07,145.06,0.03]
[1742986913519,27.4669532,145.07,145.06,0.03]
[1742986914824,19.14964886,145.07,145.06,0.03]
[1742986916227,27.4669532,145.07,145.06,0.03]
[1742986916723,27.60911477,145.07,145.06,0.03]
[1742986934542,25.74359341,145.07,145.06,0.03]
[1742986941964,25.80659341,145.07,145.06,0.03]
[1742986946029,0.14216157,145.06,145.0,0.03]
[1742986946234,18.64964886,145.01,145.0,0.03]
[1742986946435,18.64964886,145.02,145.0,0.03]
[1742986947157,8.31730434,145.02,145.0,0.03]
[1742986947453,8.31730434,145.01,145.0,0.03]
[1742986950261,8.45946591,145.01,145.0,0.03]
[1742986950661,27.10911477,145.01,145.0,0.03]
[1742986952062,18.79181043,145.01,145.0,0.03]
[1742986952859,18.64964886,145.01,145.0,0.03]
[1742986953444,18.64964886,145.02,145.0,0.03]
[1742986958847,8.31730434,145.02,145.0,0.03]
[1742986959152,8.31730434,145.01,145.0,0.03]
[1742986959566,8.45946591,145.01,145.0,0.03]
[1742986962364,27.10911477,145.01,145.0,0.03]
[1742986966878,30.49853069,145.01,145.0,0.03]
[1742986969882,18.79181043,145.0,144.99,0.03]
[1742986970207,18.79181043,144.97,144.94,0.063]
[1742986970375,8.45946591,144.95,144.94,0.063]
[1742986971570,27.10911477,144.95,144.94,0.063]
[1742986972501,18.64964886,144.95,144.94,0.063]
[1742986974571,27.10911477,144.95,144.94,0.063]
[1742986977977,18.79181043,144.94,144.92,0.03]
[1742986978183,0.14216157,144.92,144.91,0.03]
[1742986978492,8.45946591,144.92,144.91,0.03]
[1742986979195,27.10911477,144.92,144.91,0.03]
[1742986981090,8.45946591,144.94,144.91,0.03]
[1742986981297,26.9669532,144.95,144.91,0.03]
[1742986981489,8.31730434,144.93,144.91,0.03]
[1742986981684,8.31730434,144.94,144.91,0.03]
[1742986984891,26.9669532,144.95,144.91,0.03]
[1742986986705,8.31730434,144.94,144.91,0.03]
[1742986990991,26.9669532,144.95,144.91,0.03]